[Event "*** Titled Tuesday Blitz"]
[Site "Chess.com"]
[Date "2018.12.04"]
[Round "4"]
[White "Squirlolz"]
[Black "JordanaEmiel"]
[Result "1-0"]
[WhiteElo "2470"]
[BlackElo "2035"]
[TimeControl "180+2"]
[EndTime "13:44:29 PST"]
[Termination "Squirlolz won by resignation"]

1. b3 {[%clk 0:03:01.9]} 1... e5 {[%clk 0:03:00.3]} 2. Bb2 {[%clk 0:03:03.8]}
2... Nc6 {[%clk 0:03:00.4]} 3. e3 {[%clk 0:03:05.7]} 3... f5 {[%clk 0:02:48.3]}
4. d4 {[%clk 0:03:02.2]} 4... d6 {[%clk 0:02:43]} 5. dxe5 {[%clk 0:03:01.8]}
5... dxe5 {[%clk 0:02:42.1]} 6. Qxd8+ {[%clk 0:03:03.7]} 6... Kxd8 {[%clk
0:02:43.6]} 7. Bb5 {[%clk 0:03:03.8]} 7... Bd6 {[%clk 0:02:43]} 8. Nf3 {[%clk
0:03:04.2]} 8... Nge7 {[%clk 0:02:39.2]} 9. Na3 {[%clk 0:03:01.7]} 9... h6
{[%clk 0:02:37.7]} 10. Nc4 {[%clk 0:03:02.6]} 10... e4 {[%clk 0:02:31.6]} 11.
Nxd6 {[%clk 0:03:01.8]} 11... cxd6 {[%clk 0:02:31.1]} 12. Nd4 {[%clk 0:03:01.6]}
12... Bd7 {[%clk 0:02:26.7]} 13. Be2 {[%clk 0:02:48.8]} 13... Rg8 {[%clk
0:02:24.4]} 14. Rd1 {[%clk 0:02:45.9]} 14... d5 {[%clk 0:02:21.3]} 15. c4 {[%clk
0:02:44]} 15... dxc4 {[%clk 0:02:07.2]} 16. Bxc4 {[%clk 0:02:43.2]} 16... Rf8
{[%clk 0:02:01]} 17. Ne6+ {[%clk 0:02:42.7]} 1-0

[Event "*** Titled Tuesday Blitz"]
[Site "Chess.com"]
[Date "2018.12.04"]
[Round "4"]
[White "Godzillator"]
[Black "Grieve72"]
[Result "1-0"]
[WhiteElo "2379"]
[BlackElo "2301"]
[TimeControl "180+2"]
[EndTime "13:44:29 PST"]
[Termination "Godzillator won by resignation"]

1. d4 {[%clk 0:03:01.9]} 1... d5 {[%clk 0:03:00.6]} 2. c4 {[%clk 0:03:03.2]}
2... e6 {[%clk 0:03:02]} 3. cxd5 {[%clk 0:03:04.3]} 3... exd5 {[%clk 0:03:03]}
4. Nc3 {[%clk 0:03:05.8]} 4... Bf5 {[%clk 0:03:03.4]} 5. Qb3 {[%clk 0:03:04.1]}
5... Nc6 {[%clk 0:02:57]} 6. Nf3 {[%clk 0:02:57.5]} 6... Nb4 {[%clk 0:02:48.8]}
7. e4 {[%clk 0:02:58.7]} 7... dxe4 {[%clk 0:02:49.6]} 8. Ne5 {[%clk 0:02:59.2]}
8... Be6 {[%clk 0:02:35.4]} 9. Bc4 {[%clk 0:02:59.7]} 9... Qxd4 {[%clk
0:01:44.5]} 10. Bxe6 {[%clk 0:02:53.4]} 10... Nc2+ {[%clk 0:01:44.7]} 11. Qxc2
{[%clk 0:02:51.8]} 11... fxe6 {[%clk 0:01:39.9]} 12. Qxe4 {[%clk 0:02:50.7]}
12... O-O-O {[%clk 0:01:36.6]} 13. Qxd4 {[%clk 0:02:51]} 13... Rxd4 {[%clk
0:01:38.5]} 14. Be3 {[%clk 0:02:51.9]} 1-0

[Event "*** Titled Tuesday Blitz"]
[Site "Chess.com"]
[Date "2018.12.04"]
[Round "4"]
[White "anesar92"]
[Black "bubacik"]
[Result "0-1"]
[WhiteElo "2671"]
[BlackElo "2672"]
[TimeControl "180+2"]
[EndTime "13:44:52 PST"]
[Termination "bubacik won by resignation"]

1. e4 {[%clk 0:03:01.9]} 1... e6 {[%clk 0:02:59.8]} 2. d4 {[%clk 0:03:01.6]}
2... d5 {[%clk 0:03:01.1]} 3. Nd2 {[%clk 0:03:03.1]} 3... Nf6 {[%clk 0:03:02.6]}
4. e5 {[%clk 0:03:03.8]} 4... Nfd7 {[%clk 0:03:04.3]} 5. f4 {[%clk 0:03:05.4]}
5... c5 {[%clk 0:03:06]} 6. Ngf3 {[%clk 0:03:07.1]} 6... Nc6 {[%clk 0:03:07.3]}
7. Nb3 {[%clk 0:03:08.7]} 7... Be7 {[%clk 0:02:30.8]} 8. dxc5 {[%clk 0:03:06.9]}
8... Nxc5 {[%clk 0:02:31.1]} 9. Be3 {[%clk 0:03:08.4]} 9... b6 {[%clk
0:02:23.9]} 10. Be2 {[%clk 0:03:05.4]} 10... O-O {[%clk 0:02:22.7]} 11. O-O
{[%clk 0:03:06.4]} 11... Bb7 {[%clk 0:01:45.9]} 12. c3 {[%clk 0:03:03.5]} 12...
Ne4 {[%clk 0:01:29.3]} 13. Nbd4 {[%clk 0:03:00.3]} 13... Rc8 {[%clk 0:01:21]}
14. Nf5 {[%clk 0:02:48.9]} 14... exf5 {[%clk 0:01:19]} 0-1

[Event "*** Titled Tuesday Blitz"]
[Site "Chess.com"]
[Date "2018.12.04"]
[Round "4"]
[White "DonPreuss"]
[Black "julinha97"]
[Result "1-0"]
[WhiteElo "2168"]
[BlackElo "2104"]
[TimeControl "180+2"]
[EndTime "13:45:08 PST"]
[Termination "DonPreuss won by resignation"]

1. d4 {[%clk 0:03:01.9]} 1... Nf6 {[%clk 0:02:59.7]} 2. Nc3 {[%clk 0:03:01.7]}
2... d5 {[%clk 0:02:59.9]} 3. e4 {[%clk 0:03:02.7]} 3... dxe4 {[%clk 0:02:56.3]}
4. f3 {[%clk 0:03:03.6]} 4... exf3 {[%clk 0:02:55.9]} 5. Nxf3 {[%clk 0:03:05.5]}
5... e6 {[%clk 0:02:56.4]} 6. Bd3 {[%clk 0:03:05.7]} 6... Be7 {[%clk 0:02:55.3]}
7. O-O {[%clk 0:03:05.4]} 7... h6 {[%clk 0:02:56.5]} 8. Qe1 {[%clk 0:03:06]}
8... O-O {[%clk 0:02:57]} 9. Qh4 {[%clk 0:03:06.3]} 9... Nd5 {[%clk 0:02:54.8]}
10. Qg3 {[%clk 0:03:07.3]} 10... Bd6 {[%clk 0:02:30.2]} 11. Qh3 {[%clk
0:02:51.2]} 11... e5 {[%clk 0:02:14.3]} 12. Qh5 {[%clk 0:02:52.1]} 12... Nxc3
{[%clk 0:02:13.2]} 13. bxc3 {[%clk 0:02:50.4]} 13... exd4 {[%clk 0:02:04.5]} 14.
Bxh6 {[%clk 0:02:49.3]} 14... gxh6 {[%clk 0:01:16.6]} 15. Qxh6 {[%clk
0:02:49.1]} 15... f5 {[%clk 0:01:17.7]} 16. Bc4+ {[%clk 0:02:47.4]} 1-0

[Event "*** Titled Tuesday Blitz"]
[Site "Chess.com"]
[Date "2018.12.04"]
[Round "4"]
[White "Kimster98"]
[Black "matiss90"]
[Result "1-0"]
[WhiteElo "2565"]
[BlackElo "2415"]
[TimeControl "180+2"]
[EndTime "13:45:28 PST"]
[Termination "Kimster98 won by resignation"]

1. e4 {[%clk 0:03:00.6]} 1... c5 {[%clk 0:03:00.9]} 2. Nf3 {[%clk 0:03:01.5]}
2... d6 {[%clk 0:03:02.2]} 3. Bb5+ {[%clk 0:03:02.7]} 3... Bd7 {[%clk 0:03:00]}
4. Bxd7+ {[%clk 0:03:03.6]} 4... Qxd7 {[%clk 0:03:01.4]} 5. O-O {[%clk
0:03:03.6]} 5... Nf6 {[%clk 0:03:02.7]} 6. Qe2 {[%clk 0:03:03.2]} 6... Nc6
{[%clk 0:03:02.1]} 7. Rd1 {[%clk 0:03:04.3]} 7... g5 {[%clk 0:02:53.4]} 8. e5
{[%clk 0:02:57.5]} 8... g4 {[%clk 0:02:53]} 9. exf6 {[%clk 0:02:53.9]} 9... gxf3
{[%clk 0:02:54]} 10. Qxf3 {[%clk 0:02:55.8]} 10... O-O-O {[%clk 0:02:54]} 11.
fxe7 {[%clk 0:02:53.8]} 11... Bxe7 {[%clk 0:02:54.5]} 12. c3 {[%clk 0:02:49.6]}
12... Rhg8 {[%clk 0:02:55.4]} 13. d4 {[%clk 0:02:49.4]} 13... h5 {[%clk
0:02:32.6]} 14. dxc5 {[%clk 0:02:45.1]} 14... Ne5 {[%clk 0:02:29]} 15. Qe4
{[%clk 0:02:37.2]} 15... Qh3 {[%clk 0:02:09.7]} 16. Kh1 {[%clk 0:02:22.3]} 16...
Ng4 {[%clk 0:01:52.7]} 17. Qf5+ {[%clk 0:02:21.9]} 17... Kb8 {[%clk 0:01:48.6]}
18. gxh3 {[%clk 0:02:22.1]} 18... Ne5 {[%clk 0:01:38.7]} 19. cxd6 {[%clk
0:02:20.5]} 19... Bxd6 {[%clk 0:01:39.6]} 20. Bf4 {[%clk 0:02:19.6]} 1-0

[Event "*** Titled Tuesday Blitz"]
[Site "Chess.com"]
[Date "2018.12.04"]
[Round "4"]
[White "Mikhail_Golubev"]
[Black "PlotnikovPavel"]
[Result "1-0"]
[WhiteElo "2470"]
[BlackElo "2346"]
[TimeControl "180+2"]
[EndTime "13:47:00 PST"]
[Termination "Mikhail_Golubev won by resignation"]

1. e4 {[%clk 0:03:01.9]} 1... e6 {[%clk 0:03:01]} 2. d4 {[%clk 0:03:01.6]} 2...
d5 {[%clk 0:03:02.3]} 3. Nc3 {[%clk 0:03:02.3]} 3... Nf6 {[%clk 0:03:02.9]} 4.
Bg5 {[%clk 0:03:01.9]} 4... Be7 {[%clk 0:03:03.6]} 5. e5 {[%clk 0:03:02.5]} 5...
Nfd7 {[%clk 0:03:04]} 6. h4 {[%clk 0:03:03.6]} 6... a6 {[%clk 0:03:02.1]} 7. Qg4
{[%clk 0:02:52.9]} 7... h5 {[%clk 0:03:02.8]} 8. Qg3 {[%clk 0:02:49.7]} 8...
Bxg5 {[%clk 0:03:03.3]} 9. hxg5 {[%clk 0:02:49.9]} 9... g6 {[%clk 0:03:04.3]}
10. f4 {[%clk 0:02:43.8]} 10... c5 {[%clk 0:03:05.3]} 11. Nf3 {[%clk 0:02:42.7]}
11... Nc6 {[%clk 0:03:05.7]} 12. Qf2 {[%clk 0:02:34.6]} 12... Qb6 {[%clk
0:02:53.9]} 13. O-O-O {[%clk 0:02:35.3]} 13... cxd4 {[%clk 0:02:34.8]} 14. Nxd4
{[%clk 0:02:33.6]} 14... Nxd4 {[%clk 0:02:35.6]} 15. Qxd4 {[%clk 0:02:31.4]}
15... Qxd4 {[%clk 0:02:35.4]} 16. Rxd4 {[%clk 0:02:32.1]} 16... Ke7 {[%clk
0:02:34.6]} 17. g4 {[%clk 0:02:30.9]} 17... h4 {[%clk 0:02:33.8]} 18. Rd2 {[%clk
0:02:27.2]} 18... b5 {[%clk 0:02:32.2]} 19. Rdh2 {[%clk 0:02:20.2]} 19... Bb7
{[%clk 0:02:27.2]} 20. Bg2 {[%clk 0:02:18.9]} 20... Nc5 {[%clk 0:02:04.2]} 21.
Rxh4 {[%clk 0:02:17.8]} 21... Rxh4 {[%clk 0:01:59]} 22. Rxh4 {[%clk 0:02:18.7]}
22... d4 {[%clk 0:01:56.2]} 23. Bxb7 {[%clk 0:02:18.4]} 23... Nxb7 {[%clk
0:01:56.6]} 24. Ne4 {[%clk 0:02:19.3]} 24... Rc8 {[%clk 0:01:55.3]} 25. Rh7
{[%clk 0:02:13.1]} 25... d3 {[%clk 0:01:52.9]} 26. c3 {[%clk 0:02:13.4]} 26...
b4 {[%clk 0:01:52.4]} 27. Kd2 {[%clk 0:02:11.8]} 27... bxc3+ {[%clk 0:01:14.3]}
28. bxc3 {[%clk 0:02:12]} 28... Nc5 {[%clk 0:01:15]} 29. Rxf7+ {[%clk
0:01:59.6]} 29... Kxf7 {[%clk 0:01:15.9]} 30. Nd6+ {[%clk 0:02:00.8]} 1-0

[Event "*** Titled Tuesday Blitz"]
[Site "Chess.com"]
[Date "2018.12.04"]
[Round "4"]
[White "Parhamov"]
[Black "Atanejhad"]
[Result "1-0"]
[WhiteElo "2848"]
[BlackElo "2272"]
[TimeControl "180+2"]
[EndTime "13:47:02 PST"]
[Termination "Parhamov won by resignation"]

1. Nf3 {[%clk 0:02:55.8]} 1... Nf6 {[%clk 0:02:57.3]} 2. d4 {[%clk 0:02:55.5]}
2... c5 {[%clk 0:02:54.1]} 3. c4 {[%clk 0:02:51.1]} 3... e6 {[%clk 0:02:53.3]}
4. g3 {[%clk 0:02:51.7]} 4... cxd4 {[%clk 0:02:52.9]} 5. Nxd4 {[%clk 0:02:52.7]}
5... Bb4+ {[%clk 0:02:52.9]} 6. Bd2 {[%clk 0:02:52.8]} 6... Bxd2+ {[%clk
0:02:45.4]} 7. Nxd2 {[%clk 0:02:43.8]} 7... Nc6 {[%clk 0:02:46.3]} 8. N4b3
{[%clk 0:02:42.7]} 8... O-O {[%clk 0:02:46.4]} 9. Bg2 {[%clk 0:02:43.8]} 9... d5
{[%clk 0:02:44.9]} 10. O-O {[%clk 0:02:43.1]} 10... b6 {[%clk 0:02:37.8]} 11.
Rc1 {[%clk 0:02:42.6]} 11... Bb7 {[%clk 0:02:37.9]} 12. cxd5 {[%clk 0:02:42.1]}
12... Nxd5 {[%clk 0:02:38.3]} 13. Nc4 {[%clk 0:02:41.8]} 13... Rc8 {[%clk
0:02:36.4]} 14. e4 {[%clk 0:02:38.3]} 14... Ndb4 {[%clk 0:02:35.7]} 15. Nd6
{[%clk 0:02:39.7]} 15... Rc7 {[%clk 0:02:12.6]} 16. Nxb7 {[%clk 0:02:39.7]}
16... Rxb7 {[%clk 0:02:01.7]} 17. a3 {[%clk 0:02:33.9]} 17... Rd7 {[%clk
0:01:46.6]} 18. Qe2 {[%clk 0:02:27.1]} 18... Nd4 {[%clk 0:00:56.2]} 19. Nxd4
{[%clk 0:02:26.8]} 19... Rxd4 {[%clk 0:00:57.4]} 20. axb4 {[%clk 0:02:27.9]}
20... Rd2 {[%clk 0:00:58.7]} 21. Qa6 {[%clk 0:02:25.8]} 21... Rxb2 {[%clk
0:01:00]} 22. Qxa7 {[%clk 0:02:27]} 22... Rxb4 {[%clk 0:00:53.9]} 23. Qc7 {[%clk
0:02:27.8]} 23... Qf6 {[%clk 0:00:49.1]} 24. Qc3 {[%clk 0:02:27.9]} 1-0

[Event "*** Titled Tuesday Blitz"]
[Site "Chess.com"]
[Date "2018.12.04"]
[Round "4"]
[White "1stSecond"]
[Black "mazetofonias"]
[Result "1-0"]
[WhiteElo "2629"]
[BlackElo "2557"]
[TimeControl "180+2"]
[EndTime "13:47:18 PST"]
[Termination "1stSecond won by resignation"]

1. Nf3 {[%clk 0:02:58.8]} 1... Nf6 {[%clk 0:03:00.4]} 2. c4 {[%clk 0:02:59.4]}
2... e6 {[%clk 0:03:01.2]} 3. Nc3 {[%clk 0:03:00.9]} 3... Bb4 {[%clk 0:03:00.8]}
4. Qc2 {[%clk 0:02:59]} 4... O-O {[%clk 0:03:01.8]} 5. a3 {[%clk 0:03:00.4]}
5... Bxc3 {[%clk 0:03:01.8]} 6. Qxc3 {[%clk 0:03:02.3]} 6... c5 {[%clk
0:03:03.1]} 7. g3 {[%clk 0:03:02.3]} 7... b6 {[%clk 0:03:03.5]} 8. Bg2 {[%clk
0:03:03.3]} 8... Bb7 {[%clk 0:03:05.4]} 9. b4 {[%clk 0:03:03.6]} 9... d6 {[%clk
0:03:06]} 10. O-O {[%clk 0:03:03.7]} 10... Nc6 {[%clk 0:03:06.1]} 11. Bb2 {[%clk
0:03:03.9]} 11... e5 {[%clk 0:03:06]} 12. e3 {[%clk 0:03:02.7]} 12... Re8 {[%clk
0:03:05.7]} 13. d3 {[%clk 0:03:00.8]} 13... Qd7 {[%clk 0:03:06.3]} 14. Rfe1
{[%clk 0:02:56.9]} 14... a5 {[%clk 0:03:06.5]} 15. b5 {[%clk 0:02:54.1]} 15...
Ne7 {[%clk 0:03:07.4]} 16. d4 {[%clk 0:02:54.6]} 16... exd4 {[%clk 0:03:03.1]}
17. exd4 {[%clk 0:02:55.8]} 17... Nf5 {[%clk 0:03:04.3]} 18. d5 {[%clk
0:02:54.5]} 18... Rxe1+ {[%clk 0:03:05.5]} 19. Rxe1 {[%clk 0:02:54.4]} 19... Re8
{[%clk 0:03:06.9]} 20. Bh3 {[%clk 0:02:48.7]} 20... Bc8 {[%clk 0:02:49.6]} 21.
Nh4 {[%clk 0:02:34.9]} 21... Rxe1+ {[%clk 0:02:49.1]} 22. Qxe1 {[%clk
0:02:36.7]} 22... Nxh4 {[%clk 0:02:07.4]} 23. Bxd7 {[%clk 0:02:25]} 23... Nf3+
{[%clk 0:02:07.9]} 24. Kf1 {[%clk 0:02:19.3]} 24... Nxe1 {[%clk 0:02:09.6]} 25.
Bxc8 {[%clk 0:02:19.5]} 25... Nd3 {[%clk 0:02:09.3]} 26. Bc3 {[%clk 0:02:16.2]}
26... Ne4 {[%clk 0:02:10.2]} 27. Bxa5 {[%clk 0:02:05.1]} 27... Ne5 {[%clk
0:01:56.4]} 28. Bxb6 {[%clk 0:02:03.2]} 28... Nxc4 {[%clk 0:01:54.1]} 29. Bc7
{[%clk 0:01:53.1]} 29... Nc3 {[%clk 0:01:52.9]} 30. b6 {[%clk 0:01:52]} 30...
Nxb6 {[%clk 0:01:53.9]} 31. Bxb6 {[%clk 0:01:52.7]} 31... Nxd5 {[%clk
0:01:55.8]} 32. Bd8 {[%clk 0:01:49]} 32... Nc3 {[%clk 0:01:53.3]} 33. Be7 {[%clk
0:01:45.8]} 33... c4 {[%clk 0:01:42.5]} 34. Bxd6 {[%clk 0:01:38.4]} 34... Nb5
{[%clk 0:01:43.3]} 35. Bb4 {[%clk 0:01:39.1]} 35... c3 {[%clk 0:01:44.8]} 36.
Ke2 {[%clk 0:01:36.4]} 36... c2 {[%clk 0:01:42.7]} 37. Kd2 {[%clk 0:01:37.5]}
1-0

[Event "*** Titled Tuesday Blitz"]
[Site "Chess.com"]
[Date "2018.12.04"]
[Round "4"]
[White "Jadeit90"]
[Black "Jenia84"]
[Result "1-0"]
[WhiteElo "2278"]
[BlackElo "2211"]
[TimeControl "180+2"]
[EndTime "13:47:29 PST"]
[Termination "Jadeit90 won by resignation"]

1. g3 {[%clk 0:03:01.9]} 1... g6 {[%clk 0:02:54]} 2. Bg2 {[%clk 0:03:03.2]} 2...
Bg7 {[%clk 0:02:54.4]} 3. e4 {[%clk 0:03:04.5]} 3... c5 {[%clk 0:02:52.7]} 4.
Nc3 {[%clk 0:02:57.1]} 4... Nc6 {[%clk 0:02:52.9]} 5. d3 {[%clk 0:02:58.4]} 5...
d6 {[%clk 0:02:46.6]} 6. Be3 {[%clk 0:02:54.3]} 6... Nf6 {[%clk 0:02:46.5]} 7.
h3 {[%clk 0:02:55.2]} 7... O-O {[%clk 0:02:46.5]} 8. Nge2 {[%clk 0:02:56.4]}
8... Rb8 {[%clk 0:02:46.2]} 9. a4 {[%clk 0:02:55.8]} 9... a6 {[%clk 0:02:46.4]}
10. O-O {[%clk 0:02:56.3]} 10... b5 {[%clk 0:02:47.1]} 11. axb5 {[%clk
0:02:56.9]} 11... axb5 {[%clk 0:02:47.7]} 12. Qd2 {[%clk 0:02:58.3]} 12... b4
{[%clk 0:02:47.9]} 13. Nd1 {[%clk 0:02:59.4]} 13... Ne8 {[%clk 0:02:35.5]} 14.
d4 {[%clk 0:02:57.2]} 14... cxd4 {[%clk 0:02:29.6]} 15. Nxd4 {[%clk 0:02:58.5]}
15... Nxd4 {[%clk 0:02:30]} 16. Bxd4 {[%clk 0:02:59.9]} 16... Bxd4 {[%clk
0:02:30]} 17. Qxd4 {[%clk 0:03:01.1]} 17... Nc7 {[%clk 0:02:30.3]} 18. Ne3
{[%clk 0:03:02.1]} 18... Ne6 {[%clk 0:02:30.6]} 19. Qd2 {[%clk 0:03:02.6]} 19...
Bd7 {[%clk 0:02:23.9]} 20. f4 {[%clk 0:03:00.8]} 20... Qb6 {[%clk 0:02:21.9]}
21. Kh2 {[%clk 0:03:01.1]} 21... Qd4 {[%clk 0:02:20.6]} 22. Qxd4 {[%clk
0:02:55.9]} 22... Nxd4 {[%clk 0:02:20.6]} 23. Rfd1 {[%clk 0:02:57.1]} 23... Nb5
{[%clk 0:01:49.3]} 24. Nd5 {[%clk 0:02:54.1]} 24... Rfe8 {[%clk 0:01:47.7]} 25.
g4 {[%clk 0:02:52]} 25... b3 {[%clk 0:01:15.5]} 26. c3 {[%clk 0:02:46.5]} 26...
Be6 {[%clk 0:01:08.6]} 27. Nb4 {[%clk 0:02:46.2]} 27... Rec8 {[%clk 0:01:05.9]}
28. f5 {[%clk 0:02:46.9]} 28... Bc4 {[%clk 0:01:05.1]} 29. Bf1 {[%clk
0:02:41.1]} 29... Bxf1 {[%clk 0:01:04.6]} 30. Rxf1 {[%clk 0:02:42.2]} 30... Rc4
{[%clk 0:01:04.4]} 31. Rfe1 {[%clk 0:02:40.8]} 31... Na7 {[%clk 0:00:56.2]} 32.
Kg3 {[%clk 0:02:40.4]} 32... Nc6 {[%clk 0:00:56.6]} 33. Nxc6 {[%clk 0:02:40.9]}
33... Rxc6 {[%clk 0:00:57.1]} 34. e5 {[%clk 0:02:41.4]} 34... Rb5 {[%clk
0:00:49.7]} 35. exd6 {[%clk 0:02:40.7]} 35... exd6 {[%clk 0:00:48.1]} 36. f6
{[%clk 0:02:39.3]} 36... h5 {[%clk 0:00:48.1]} 37. Re8+ {[%clk 0:02:35.7]} 37...
Kh7 {[%clk 0:00:48.9]} 38. Raa8 {[%clk 0:02:35.8]} 38... g5 {[%clk 0:00:49.4]}
39. gxh5 {[%clk 0:02:35.6]} 1-0

[Event "*** Titled Tuesday Blitz"]
[Site "Chess.com"]
[Date "2018.12.04"]
[Round "4"]
[White "ASVZ"]
[Black "DishonorOnYourCow"]
[Result "1-0"]
[WhiteElo "2282"]
[BlackElo "2243"]
[TimeControl "180+2"]
[EndTime "13:47:35 PST"]
[Termination "ASVZ won by resignation"]

1. e4 {[%clk 0:03:00.1]} 1... c5 {[%clk 0:03:00]} 2. c3 {[%clk 0:03:00.4]} 2...
Nf6 {[%clk 0:02:59.6]} 3. e5 {[%clk 0:02:56.6]} 3... Nd5 {[%clk 0:03:00.4]} 4.
d4 {[%clk 0:02:56.7]} 4... cxd4 {[%clk 0:03:00.4]} 5. Qxd4 {[%clk 0:02:58.6]}
5... e6 {[%clk 0:03:00.8]} 6. Nf3 {[%clk 0:02:59.9]} 6... Nc6 {[%clk 0:03:01]}
7. Qe4 {[%clk 0:03:01.3]} 7... d6 {[%clk 0:02:59.4]} 8. Bb5 {[%clk 0:03:02.5]}
8... Bd7 {[%clk 0:02:47.2]} 9. c4 {[%clk 0:03:03.2]} 9... Nc7 {[%clk 0:02:38]}
10. exd6 {[%clk 0:03:04.4]} 10... Bxd6 {[%clk 0:02:35.3]} 11. O-O {[%clk
0:03:04.2]} 11... O-O {[%clk 0:02:22.1]} 12. Rd1 {[%clk 0:03:02.7]} 12... Qe7
{[%clk 0:01:52.4]} 13. Nc3 {[%clk 0:03:03.2]} 13... a6 {[%clk 0:01:45.3]} 14.
Ba4 {[%clk 0:03:03.7]} 14... f5 {[%clk 0:01:37.5]} 15. Qd3 {[%clk 0:03:04]}
15... Ne8 {[%clk 0:01:23.5]} 16. c5 {[%clk 0:03:03.8]} 16... Bc7 {[%clk
0:00:23.6]} 17. Qxd7 {[%clk 0:03:03.7]} 17... Qxc5 {[%clk 0:00:19.7]} 18. Be3
{[%clk 0:02:53]} 18... Qb4 {[%clk 0:00:20.4]} 19. Bxc6 {[%clk 0:02:37.3]} 19...
bxc6 {[%clk 0:00:20.7]} 20. Qxe6+ {[%clk 0:02:37.5]} 20... Kh8 {[%clk
0:00:21.2]} 21. Qxc6 {[%clk 0:02:38.6]} 21... Rc8 {[%clk 0:00:20.6]} 22. Kh1
{[%clk 0:02:24.6]} 22... Qxb2 {[%clk 0:00:12.4]} 23. Rab1 {[%clk 0:02:24.9]}
23... Qa3 {[%clk 0:00:12.8]} 24. Rb3 {[%clk 0:02:17.2]} 24... Qa5 {[%clk
0:00:09.8]} 25. Nd5 {[%clk 0:02:08.4]} 25... Rf6 {[%clk 0:00:06.6]} 26. Nxf6
{[%clk 0:02:06.4]} 1-0

[Event "*** Titled Tuesday Blitz"]
[Site "Chess.com"]
[Date "2018.12.04"]
[Round "4"]
[White "SCIM"]
[Black "Chessialist"]
[Result "1-0"]
[WhiteElo "2435"]
[BlackElo "2482"]
[TimeControl "180+2"]
[EndTime "13:47:40 PST"]
[Termination "SCIM won by checkmate"]

1. d4 {[%clk 0:03:01.9]} 1... Nf6 {[%clk 0:03:00.6]} 2. c4 {[%clk 0:02:58.4]}
2... e5 {[%clk 0:03:01.3]} 3. dxe5 {[%clk 0:02:58.6]} 3... Ng4 {[%clk
0:03:02.5]} 4. e4 {[%clk 0:02:51.9]} 4... Nxe5 {[%clk 0:03:02.6]} 5. f4 {[%clk
0:02:52.3]} 5... Nec6 {[%clk 0:03:04]} 6. Be3 {[%clk 0:02:49.1]} 6... Bb4+
{[%clk 0:03:05]} 7. Nd2 {[%clk 0:02:47.7]} 7... b6 {[%clk 0:02:56.7]} 8. Nf3
{[%clk 0:02:45]} 8... O-O {[%clk 0:02:56.5]} 9. Bd3 {[%clk 0:02:43.8]} 9... Bc5
{[%clk 0:02:57.5]} 10. Bxc5 {[%clk 0:02:41.6]} 10... bxc5 {[%clk 0:02:58.5]} 11.
e5 {[%clk 0:02:40.4]} 11... d6 {[%clk 0:02:58.1]} 12. exd6 {[%clk 0:02:05.2]}
12... cxd6 {[%clk 0:02:55.5]} 13. O-O {[%clk 0:02:04.6]} 13... Bb7 {[%clk
0:02:42.2]} 14. Bxh7+ {[%clk 0:01:55.7]} 14... Kxh7 {[%clk 0:02:02.7]} 15. Ng5+
{[%clk 0:01:55.8]} 15... Kg6 {[%clk 0:02:00.9]} 16. f5+ {[%clk 0:01:37]} 16...
Kxg5 {[%clk 0:02:00.3]} 17. Ne4+ {[%clk 0:01:36.5]} 17... Kh6 {[%clk 0:01:46.2]}
18. Rf3 {[%clk 0:01:34.9]} 18... g5 {[%clk 0:01:39.8]} 19. Rh3+ {[%clk
0:01:30.7]} 19... Kg7 {[%clk 0:01:40.4]} 20. f6+ {[%clk 0:01:31]} 20... Kg6
{[%clk 0:01:41.6]} 21. Qh5+ {[%clk 0:01:27.8]} 21... Kf5 {[%clk 0:01:42.5]} 22.
Qxg5+ {[%clk 0:01:17.2]} 22... Ke6 {[%clk 0:01:34.1]} 23. Qg4+ {[%clk
0:01:16.8]} 23... Ke5 {[%clk 0:01:35.2]} 24. Rh5+ {[%clk 0:01:13.6]} 24... Kd4
{[%clk 0:01:36.4]} 25. Nxd6+ {[%clk 0:01:07.6]} 25... Kd3 {[%clk 0:01:36]} 26.
Rh3+ {[%clk 0:00:55.6]} 26... Kc2 {[%clk 0:01:28.6]} 27. Qe2# {[%clk 0:00:50.4]}
1-0

[Event "*** Titled Tuesday Blitz"]
[Site "Chess.com"]
[Date "2018.12.04"]
[Round "4"]
[White "chessking2151"]
[Black "djano"]
[Result "1-0"]
[WhiteElo "2558"]
[BlackElo "2365"]
[TimeControl "180+2"]
[EndTime "13:48:13 PST"]
[Termination "chessking2151 won by resignation"]

1. d4 {[%clk 0:03:01.9]} 1... Nf6 {[%clk 0:03:00.3]} 2. Nf3 {[%clk 0:03:00.2]}
2... e6 {[%clk 0:03:01.6]} 3. c4 {[%clk 0:03:01.2]} 3... d5 {[%clk 0:03:02.3]}
4. e3 {[%clk 0:02:57.8]} 4... Be7 {[%clk 0:03:02.6]} 5. Bd3 {[%clk 0:02:52.8]}
5... O-O {[%clk 0:03:03.5]} 6. O-O {[%clk 0:02:54.1]} 6... b6 {[%clk 0:03:04.2]}
7. b3 {[%clk 0:02:41.2]} 7... Bb7 {[%clk 0:03:04]} 8. Bb2 {[%clk 0:02:42]} 8...
Nbd7 {[%clk 0:03:02.3]} 9. Qc2 {[%clk 0:02:37]} 9... dxc4 {[%clk 0:02:59.8]} 10.
bxc4 {[%clk 0:02:35.6]} 10... c5 {[%clk 0:02:56.7]} 11. Ne5 {[%clk 0:02:05.4]}
11... cxd4 {[%clk 0:02:52.3]} 12. exd4 {[%clk 0:02:05.1]} 12... Rc8 {[%clk
0:02:50.9]} 13. Nc3 {[%clk 0:02:00.4]} 13... Nxe5 {[%clk 0:02:43.6]} 14. dxe5
{[%clk 0:02:00.2]} 14... Nd7 {[%clk 0:02:29.2]} 15. Bxh7+ {[%clk 0:02:00.3]}
15... Kh8 {[%clk 0:02:30.7]} 16. Rad1 {[%clk 0:01:47.3]} 16... Rxc4 {[%clk
0:02:19.5]} 17. Qd3 {[%clk 0:01:41.7]} 17... Rg4 {[%clk 0:01:23.6]} 18. Be4
{[%clk 0:01:28.2]} 18... Bxe4 {[%clk 0:00:42.6]} 19. Nxe4 {[%clk 0:01:26.9]}
19... Qe8 {[%clk 0:00:30.8]} 20. Nf6 {[%clk 0:01:12.5]} 20... Bxf6 {[%clk
0:00:12.8]} 21. exf6 {[%clk 0:01:10.8]} 21... Nxf6 {[%clk 0:00:12.4]} 22. Bxf6
{[%clk 0:01:07.2]} 22... gxf6 {[%clk 0:00:11.9]} 23. Qh3+ {[%clk 0:01:07.8]} 1-0